[Event "44th Chess Olympiad Open 2022"]
[Site "Chennai"]
[Date "2022.08.06"]
[Round "8.87"]
[White "Gontcharov, Dimitri"]
[Black "Mimbasa Kutesa, Willy"]
[Result "1-0"]
[WhiteElo "1448"]
[BlackElo "1755"]
[Annotator "NA RC"]
[PlyCount "120"]
[EventDate "2022.??.??"]
[TimeControl "60"]

1. e4 {[%emt 0:00:04]} e5 {[%emt 0:00:27]} 2. Nf3 {[%emt 0:00:07]} Nc6 {
[%emt 0:00:31]} 3. d4 {[%emt 0:00:08]} exd4 {[%emt 0:00:54]} 4. Nxd4 {[%emt 0:
00:00]} Qf6 {[%emt 0:01:04]} 5. Nb3 {[%emt 0:00:10]} d6 {[%emt 0:01:23]} 6. Nc3
{[%emt 0:00:45]} Be6 {[%emt 0:00:37]} 7. Be3 {[%emt 0:01:52]} Nh6 {[%emt 0:00:
00]} 8. h3 {[%emt 0:02:25]} a6 {[%emt 0:00:47]} 9. Qd2 {[%emt 0:01:04]} Be7 {
[%emt 0:01:49]} 10. Be2 {[%emt 0:03:19]} O-O-O {[%emt 0:00:31]} 11. g4 {
[%emt 0:06:09]} Qh4 {[%emt 0:01:01]} 12. O-O-O {[%emt 0:00:58]} Ng8 {[%emt 0:
00:00]} 13. f4 {[%emt 0:04:35]} Bxb3 {[%emt 0:01:18]} 14. axb3 {[%emt 0:01:27]}
h6 {[%emt 0:03:06]} 15. Bc4 {[%emt 0:05:10]} Rf8 {[%emt 0:02:55]} 16. Nd5 {
[%emt 0:02:05]} Nf6 {[%emt 0:02:27]} 17. Nc3 {[%emt 0:08:33]} Nd7 {[%emt 0:00:
00]} 18. Nd5 {[%emt 0:07:39]} Nf6 {[%emt 0:01:12]} 19. Bf2 {[%emt 0:02:03]}
Nxe4 {[%emt 0:00:22]} 20. Bxh4 {[%emt 0:00:07]} Nxd2 {[%emt 0:00:33]} 21. Nxe7+
{[%emt 0:00:13]} Nxe7 {[%emt 0:00:37]} 22. Rxd2 {[%emt 0:01:50]} f6 {[%emt 0:
00:00]} 23. Re1 {[%emt 0:00:35]} Nc6 {[%emt 0:01:07]} 24. Be6+ {[%emt 0:01:01]}
Kb8 {[%emt 0:00:43]} 25. Bf5 {[%emt 0:01:20]} g5 {[%emt 0:00:31]} 26. Bg3 {
[%emt 0:00:42]} Re8 {[%emt 0:00:36]} 27. Rde2 {[%emt 0:01:22]} Rd8 {[%emt 0:00:
00]} 28. c3 {[%emt 0:00:27]} d5 {[%emt 0:00:38]} 29. Rd2 {[%emt 0:02:32]} d4 {
[%emt 0:00:31]} 30. c4 {[%emt 0:01:27]} Nb4 {[%emt 0:00:37]} 31. Red1 {[%emt 0:
00:00]} Rde8 {[%emt 0:03:38]} 32. Rxd4 {[%emt 0:00:41]} Re3 {[%emt 0:00:24]}
33. Rd8+ {[%emt 0:00:30]} Rxd8 {[%emt 0:00:18]} 34. Rxd8+ {[%emt 0:00:05]} Ka7
{[%emt 0:00:33]} 35. Bf2 {[%emt 0:00:02]} gxf4 {[%emt 0:00:12]} 36. Bxe3+ {
[%emt 0:01:16]} fxe3 {[%emt 0:00:02]} 37. Re8 {[%emt 0:00:14]} Nc6 {[%emt 0:00:
00]} 38. Rxe3 {[%emt 0:00:26]} Ne5 {[%emt 0:00:18]} 39. Kd2 {[%emt 0:00:29]}
Kb6 {[%emt 0:01:16]} 40. Kc3 {[%emt 0:00:40]} a5 {[%emt 0:00:31]} 41. Kd4 {
[%emt 0:30:19]} Nc6+ {[%emt 0:33:06]} 42. Kd5 {[%emt 0:00:35]} Nd8 {[%emt 0:00:
00]} 43. Re8 {[%emt 0:00:46]} c6+ {[%emt 0:00:45]} 44. Kd4 {[%emt 0:00:44]} Nf7
{[%emt 0:01:41]} 45. Rf8 {[%emt 0:00:25]} Ng5 {[%emt 0:01:27]} 46. Rxf6 {
[%emt 0:00:52]} Nxh3 {[%emt 0:00:16]} 47. Rxh6 {[%emt 0:00:20]} Ng5 {[%emt 0:
00:00]} 48. Rh5 {[%emt 0:00:30]} Nf3+ {[%emt 0:00:52]} 49. Ke3 {[%emt 0:00:12]}
Ne5 {[%emt 0:00:26]} 50. g5 {[%emt 0:00:20]} a4 {[%emt 0:01:04]} 51. g6 {
[%emt 0:00:47]} axb3 {[%emt 0:01:32]} 52. g7 {[%emt 0:00:00]} Nxc4+ {[%emt 0:
00:00]} 53. Kd4 {[%emt 0:00:12]} Nxb2 {[%emt 0:00:27]} 54. g8=Q {[%emt 0:00:27]
} c5+ {[%emt 0:01:21]} 55. Kd5 {[%emt 0:00:33]} Na4 {[%emt 0:00:58]} 56. Rh6+ {
[%emt 0:00:10]} Ka5 {[%emt 0:00:14]} 57. Qa8+ {[%emt 0:00:13]} Kb4 {[%emt 0:00:
00]} 58. Rh4+ {[%emt 0:00:15]} Kc3 {[%emt 0:01:01]} 59. Qxa4 {[%emt 0:00:17]}
b5 {[%emt 0:00:31]} 60. Rh3+ {[%emt 0:00:10]} Kb2 {[%emt 0:00:04]} 1-0

[Event "44th Chess Olympiad Open 2022"]
[Site "Chennai"]
[Date "2022.08.06"]
[Round "8.88"]
[White "Smith, Michael A"]
[Black "Kamara, Ansumana"]
[Result "0-1"]
[WhiteElo "1840"]
[BlackElo "1896"]
[Annotator "NA RC"]
[PlyCount "78"]
[EventDate "2022.??.??"]
[TimeControl "60"]

1. d4 {[%emt 0:00:03]} Nf6 {[%emt 0:00:10]} 2. Nf3 {[%emt 0:00:19]} g6 {
[%emt 0:00:16]} 3. g3 {[%emt 0:00:20]} Bg7 {[%emt 0:00:11]} 4. Bg2 {[%emt 0:00:
00]} d5 {[%emt 0:00:18]} 5. O-O {[%emt 0:00:16]} O-O {[%emt 0:00:07]} 6. Re1 {
[%emt 0:02:38]} Nbd7 {[%emt 0:03:58]} 7. Nc3 {[%emt 0:01:49]} e6 {[%emt 0:00:
00]} 8. e4 {[%emt 0:03:08]} dxe4 {[%emt 0:01:13]} 9. Nxe4 {[%emt 0:00:26]} Nxe4
{[%emt 0:01:27]} 10. Rxe4 {[%emt 0:00:17]} Re8 {[%emt 0:01:22]} 11. c3 {
[%emt 0:02:23]} c6 {[%emt 0:01:46]} 12. h4 {[%emt 0:02:27]} b6 {[%emt 0:00:51]}
13. Bf4 {[%emt 0:01:13]} Bb7 {[%emt 0:00:21]} 14. Re2 {[%emt 0:02:30]} c5 {
[%emt 0:01:21]} 15. dxc5 {[%emt 0:05:00]} Nxc5 {[%emt 0:00:21]} 16. Rd2 {
[%emt 0:02:26]} Qc8 {[%emt 0:00:30]} 17. Ne5 {[%emt 0:04:33]} Bxg2 {[%emt 0:00:
00]} 18. Kxg2 {[%emt 0:00:03]} Ne4 {[%emt 0:01:21]} 19. Re2 {[%emt 0:06:54]}
Rd8 {[%emt 0:01:43]} 20. Qc2 {[%emt 0:01:01]} f5 {[%emt 0:01:16]} 21. f3 {
[%emt 0:02:16]} Nf6 {[%emt 0:00:29]} 22. Rae1 {[%emt 0:02:12]} Nd5 {[%emt 0:00:
00]} 23. Bg5 {[%emt 0:00:56]} Re8 {[%emt 0:00:15]} 24. c4 {[%emt 0:03:29]} Nf6
{[%emt 0:00:44]} 25. Rd1 {[%emt 0:02:43]} h6 {[%emt 0:01:55]} 26. Bf4 {[%emt 0:
00:00]} Kh7 {[%emt 0:00:57]} 27. Nf7 {[%emt 0:03:43]} Re7 {[%emt 0:01:51]} 28.
Nd6 {[%emt 0:00:59]} Qc6 {[%emt 0:00:46]} 29. b3 {[%emt 0:01:55]} Nh5 {[%emt 0:
00:00]} 30. Bc1 {[%emt 0:02:48]} a6 {[%emt 0:00:25]} 31. Ba3 {[%emt 0:01:03]}
Qc7 {[%emt 0:02:54]} 32. Rde1 {[%emt 0:02:54]} Qd7 {[%emt 0:02:54]} 33. Rd1 {
[%emt 0:03:02]} Rd8 {[%emt 0:03:30]} 34. Red2 {[%emt 0:00:56]} Qc7 {[%emt 0:00:
00]} 35. Nxf5 {[%emt 0:04:32]} Rxd2+ {[%emt 0:00:37]} 36. Qxd2 {[%emt 0:00:09]}
exf5 {[%emt 0:03:03]} 37. Bxe7 {[%emt 0:00:27]} Qxg3+ {[%emt 0:03:39]} 38. Kf1
{[%emt 0:00:07]} Qxf3+ {[%emt 0:00:45]} 39. Ke1 {[%emt 0:00:05]} Bc3 {[%emt 0:
00:00]} 0-1

[Event "44th Chess Olympiad Open 2022"]
[Site "Chennai"]
[Date "2022.08.06"]
[Round "8.88"]
[White "Winston Gerald, Mansfield Thomas"]
[Black "Hair, Justin M"]
[Result "1-0"]
[WhiteElo "1832"]
[BlackElo "1505"]
[Annotator "NA RC"]
[PlyCount "111"]
[EventDate "2022.??.??"]
[TimeControl "60"]

1. e4 {[%emt 0:00:03]} e6 {[%emt 0:00:07]} 2. d4 {[%emt 0:00:11]} d5 {[%emt 0:
00:00]} 3. exd5 {[%emt 0:00:15]} exd5 {[%emt 0:00:10]} 4. Bd3 {[%emt 0:00:13]}
c5 {[%emt 0:00:21]} 5. c3 {[%emt 0:01:03]} Bd7 {[%emt 0:01:10]} 6. Nf3 {
[%emt 0:00:20]} Bd6 {[%emt 0:01:04]} 7. dxc5 {[%emt 0:00:56]} Bxc5 {[%emt 0:00:
00]} 8. Qb3 {[%emt 0:00:23]} Qe7+ {[%emt 0:02:11]} 9. Be2 {[%emt 0:00:25]} Bc6
{[%emt 0:00:46]} 10. Bg5 {[%emt 0:02:40]} Nf6 {[%emt 0:02:19]} 11. Nbd2 {
[%emt 0:00:32]} Nbd7 {[%emt 0:01:47]} 12. O-O {[%emt 0:00:46]} O-O {[%emt 0:00:
00]} 13. Bd3 {[%emt 0:00:11]} Qd6 {[%emt 0:02:09]} 14. Rad1 {[%emt 0:01:50]}
Rac8 {[%emt 0:04:13]} 15. Qc2 {[%emt 0:01:27]} h6 {[%emt 0:04:42]} 16. Bxf6 {
[%emt 0:00:32]} Nxf6 {[%emt 0:00:31]} 17. Nb3 {[%emt 0:02:20]} Bb6 {[%emt 0:00:
00]} 18. Nbd4 {[%emt 0:00:40]} Bxd4 {[%emt 0:02:50]} 19. Nxd4 {[%emt 0:00:21]}
Ng4 {[%emt 0:00:54]} 20. g3 {[%emt 0:00:45]} Bd7 {[%emt 0:01:15]} 21. Bf5 {
[%emt 0:04:13]} Ne5 {[%emt 0:03:01]} 22. f4 {[%emt 0:02:01]} Ng4 {[%emt 0:00:
00]} 23. Rfe1 {[%emt 0:06:14]} Rfe8 {[%emt 0:02:13]} 24. Qd2 {[%emt 0:02:23]}
Bxf5 {[%emt 0:09:28]} 25. Nxf5 {[%emt 0:00:44]} Qb6+ {[%emt 0:06:13]} 26. Nd4 {
[%emt 0:07:18]} Re4 {[%emt 0:00:00]} 27. h3 {[%emt 0:00:30]} Nf6 {[%emt 0:00:
00]} 28. Kg2 {[%emt 0:00:59]} Rce8 {[%emt 0:02:10]} 29. b3 {[%emt 0:04:37]} Nh5
{[%emt 0:03:33]} 30. Rxe4 {[%emt 0:01:25]} dxe4 {[%emt 0:04:22]} 31. Qe3 {
[%emt 0:00:52]} Qa5 {[%emt 0:08:05]} 32. a4 {[%emt 0:01:44]} f5 {[%emt 0:00:24]
} 33. Ne2 {[%emt 0:02:19]} g6 {[%emt 0:03:57]} 34. Rd7 {[%emt 0:06:58]} Qa6 {
[%emt 0:02:21]} 35. c4 {[%emt 0:00:28]} Qc6 {[%emt 0:01:44]} 36. Rd2 {[%emt 0:
00:00]} a6 {[%emt 0:00:37]} 37. a5 {[%emt 0:01:54]} Qc7 {[%emt 0:01:32]} 38.
Qb6 {[%emt 0:01:36]} Qe7 {[%emt 0:05:02]} 39. Qxg6+ {[%emt 0:00:25]} Ng7 {
[%emt 0:01:06]} 40. Qd6 {[%emt 0:02:13]} Qf7 {[%emt 0:05:35]} 41. Qxh6 {
[%emt 0:31:44]} Re6 {[%emt 0:33:32]} 42. Qg5 {[%emt 0:02:36]} Rg6 {[%emt 0:00:
00]} 43. Qd8+ {[%emt 0:00:52]} Kh7 {[%emt 0:02:33]} 44. Qd7 {[%emt 0:01:58]}
Qf8 {[%emt 0:00:00]} 45. Qd4 {[%emt 0:00:00]} Qb4 {[%emt 0:00:00]} 46. Qc3 {
[%emt 0:00:00]} Qa3 {[%emt 0:00:00]} 47. h4 {[%emt 0:00:00]} Qe7 {[%emt 0:00:
00]} 48. Kh3 {[%emt 0:00:00]} e3 {[%emt 0:00:00]} 49. Rd4 {[%emt 0:00:00]} Rg4
{[%emt 0:00:00]} 50. Qd3 {[%emt 0:00:00]} Kh6 {[%emt 0:00:00]} 51. Rd6+ {
[%emt 0:00:00]} Kh5 {[%emt 0:00:00]} 52. Rd7 {[%emt 0:00:00]} Qe8 {[%emt 0:00:
00]} 53. Rd8 {[%emt 0:00:00]} Qc6 {[%emt 0:00:00]} 54. Qd5 {[%emt 0:00:00]} Qc7
{[%emt 0:00:00]} 55. Qd6 {[%emt 0:00:00]} Qf7 {[%emt 0:00:00]} 56. Rh8# {
[%emt 0:00:00]} 1-0

[Event "44th Chess Olympiad Open 2022"]
[Site "Chennai"]
[Date "2022.08.06"]
[Round "8.88"]
[White "Adeshole Beckley, Brian"]
[Black "Bansal, Nayan"]
[Result "1-0"]
[WhiteElo "1590"]
[BlackElo "1444"]
[Annotator "NA RC"]
[PlyCount "81"]
[EventDate "2022.??.??"]
[TimeControl "60"]

1. d4 {[%emt 0:00:05]} d5 {[%emt 0:00:17]} 2. c4 {[%emt 0:00:06]} Nf6 {[%emt 0:
00:00]} 3. cxd5 {[%emt 0:00:47]} Nxd5 {[%emt 0:00:38]} 4. Nf3 {[%emt 0:00:44]}
Bf5 {[%emt 0:04:33]} 5. Nc3 {[%emt 0:01:23]} e6 {[%emt 0:03:41]} 6. Qb3 {
[%emt 0:06:18]} Bb4 {[%emt 0:15:53]} 7. a3 {[%emt 0:02:22]} Bxc3+ {[%emt 0:00:
00]} 8. bxc3 {[%emt 0:00:10]} Nb6 {[%emt 0:00:48]} 9. a4 {[%emt 0:01:15]} a5 {
[%emt 0:01:41]} 10. Ba3 {[%emt 0:01:33]} Qd5 {[%emt 0:04:28]} 11. Qxd5 {
[%emt 0:03:13]} exd5 {[%emt 0:08:22]} 12. e3 {[%emt 0:05:38]} N8d7 {[%emt 0:00:
00]} 13. Kd2 {[%emt 0:04:45]} Nxa4 {[%emt 0:04:42]} 14. Bb5 {[%emt 0:07:00]}
Nab6 {[%emt 0:01:46]} 15. Nh4 {[%emt 0:03:33]} Be6 {[%emt 0:02:16]} 16. f4 {
[%emt 0:00:39]} f5 {[%emt 0:01:45]} 17. Nf3 {[%emt 0:00:51]} c6 {[%emt 0:01:06]
} 18. Bd3 {[%emt 0:01:34]} Nc4+ {[%emt 0:02:01]} 19. Bxc4 {[%emt 0:01:13]} dxc4
{[%emt 0:00:15]} 20. Ne5 {[%emt 0:01:34]} Nxe5 {[%emt 0:01:13]} 21. fxe5 {
[%emt 0:00:24]} O-O-O {[%emt 0:05:56]} 22. Bc5 {[%emt 0:01:06]} Bd5 {[%emt 0:
00:00]} 23. Rxa5 {[%emt 0:01:34]} Kd7 {[%emt 0:04:19]} 24. Ra7 {[%emt 0:02:28]}
g6 {[%emt 0:03:35]} 25. Rb1 {[%emt 0:01:40]} Bxg2 {[%emt 0:02:32]} 26. Rbxb7+ {
[%emt 0:00:05]} Ke6 {[%emt 0:00:44]} 27. Re7+ {[%emt 0:05:20]} Kd5 {[%emt 0:00:
00]} 28. Rxh7 {[%emt 0:07:57]} Rb8 {[%emt 0:02:22]} 29. Rad7+ {[%emt 0:02:46]}
Ke4 {[%emt 0:00:16]} 30. Rxh8 {[%emt 0:00:08]} Rxh8 {[%emt 0:00:12]} 31. e6 {
[%emt 0:00:09]} f4 {[%emt 0:05:34]} 32. exf4 {[%emt 0:00:20]} Bh3 {[%emt 0:00:
00]} 33. Rd6 {[%emt 0:01:57]} Bf5 {[%emt 0:00:59]} 34. e7 {[%emt 0:01:31]}
Rxh2+ {[%emt 0:00:16]} 35. Kc1 {[%emt 0:00:19]} Rh1+ {[%emt 0:00:08]} 36. Kb2 {
[%emt 0:00:15]} Rh2+ {[%emt 0:01:07]} 37. Ka3 {[%emt 0:00:13]} Kd3 {[%emt 0:00:
00]} 38. e8=Q {[%emt 0:00:30]} Kxc3 {[%emt 0:00:25]} 39. Qe3+ {[%emt 0:01:06]}
Bd3 {[%emt 0:00:26]} 40. Rxg6 {[%emt 0:05:56]} Rb2 {[%emt 0:02:06]} 41. Qe1+ {
[%emt 0:31:03]} 1-0

[Event "44th Chess Olympiad Open 2022"]
[Site "Chennai"]
[Date "2022.08.06"]
[Round "8.88"]
[White "Conhoff, David"]
[Black "Lwebuga, Ronald"]
[Result "1-0"]
[WhiteElo "1460"]
[BlackElo "1818"]
[Annotator "NA RC"]
[PlyCount "73"]
[EventDate "2022.??.??"]
[TimeControl "60"]

1. d4 {[%emt 0:00:04]} g6 {[%emt 0:00:05]} 2. Nf3 {[%emt 0:00:46]} Bg7 {
[%emt 0:00:06]} 3. e3 {[%emt 0:00:34]} f5 {[%emt 0:01:09]} 4. Be2 {[%emt 0:00:
00]} Nf6 {[%emt 0:00:06]} 5. Nbd2 {[%emt 0:00:18]} O-O {[%emt 0:00:24]} 6. O-O
{[%emt 0:00:36]} b6 {[%emt 0:00:48]} 7. c3 {[%emt 0:04:04]} Bb7 {[%emt 0:00:08]
} 8. Re1 {[%emt 0:03:58]} Nc6 {[%emt 0:01:26]} 9. Bd3 {[%emt 0:03:37]} e6 {
[%emt 0:02:35]} 10. Qc2 {[%emt 0:07:45]} Kh8 {[%emt 0:01:59]} 11. e4 {[%emt 0:
00:00]} fxe4 {[%emt 0:00:36]} 12. Nxe4 {[%emt 0:02:03]} Nxe4 {[%emt 0:03:09]}
13. Bxe4 {[%emt 0:02:27]} Qf6 {[%emt 0:02:23]} 14. Bg5 {[%emt 0:06:55]} Qf7 {
[%emt 0:00:15]} 15. Ne5 {[%emt 0:02:31]} Bxe5 {[%emt 0:02:41]} 16. dxe5 {
[%emt 0:01:02]} Na5 {[%emt 0:00:45]} 17. Rad1 {[%emt 0:09:56]} Bxe4 {[%emt 0:
00:00]} 18. Rxe4 {[%emt 0:00:35]} Nb7 {[%emt 0:03:14]} 19. Rf4 {[%emt 0:04:07]}
Qg7 {[%emt 0:05:12]} 20. Bf6 {[%emt 0:00:55]} Rxf6 {[%emt 0:00:06]} 21. Rxf6 {
[%emt 0:00:07]} Re8 {[%emt 0:04:05]} 22. Qe2 {[%emt 0:05:08]} d5 {[%emt 0:00:
00]} 23. Qb5 {[%emt 0:09:48]} Re7 {[%emt 0:04:29]} 24. c4 {[%emt 0:05:33]} Nc5
{[%emt 0:04:12]} 25. Qc6 {[%emt 0:03:38]} h5 {[%emt 0:00:19]} 26. b4 {[%emt 0:
00:00]} Nd7 {[%emt 0:01:54]} 27. Rxe6 {[%emt 0:00:48]} Nxe5 {[%emt 0:00:24]}
28. Rxe7 {[%emt 0:02:27]} Nxc6 {[%emt 0:02:16]} 29. Rxg7 {[%emt 0:00:03]} Kxg7
{[%emt 0:00:11]} 30. Rxd5 {[%emt 0:00:08]} Nxb4 {[%emt 0:00:19]} 31. Rd7+ {
[%emt 0:00:07]} Kf6 {[%emt 0:00:24]} 32. Rxc7 {[%emt 0:00:07]} a5 {[%emt 0:00:
00]} 33. a4 {[%emt 0:00:31]} Ke5 {[%emt 0:00:44]} 34. c5 {[%emt 0:01:43]} b5 {
[%emt 0:00:48]} 35. axb5 {[%emt 0:00:13]} a4 {[%emt 0:00:15]} 36. Ra7 {[%emt 0:
00:00]} Kd5 {[%emt 0:00:11]} 37. c6 {[%emt 0:00:12]} 1-0

[Event "44th Chess Olympiad Open 2022"]
[Site "Chennai"]
[Date "2022.08.06"]
[Round "8.89"]
[White "Montel Jr, Cyril Tomas"]
[Black "Stratonowitsch, Andre"]
[Result "0-1"]
[WhiteElo "1827"]
[BlackElo "2142"]
[Annotator "NA RC"]
[PlyCount "76"]
[EventDate "2022.??.??"]
[TimeControl "60"]

1. c4 {[%emt 0:00:03]} g6 {[%emt 0:00:05]} 2. g3 {[%emt 0:00:13]} Bg7 {[%emt 0:
00:00]} 3. Bg2 {[%emt 0:00:05]} d6 {[%emt 0:00:10]} 4. Nc3 {[%emt 0:00:08]} f5
{[%emt 0:00:17]} 5. e3 {[%emt 0:01:20]} Nf6 {[%emt 0:00:38]} 6. Nge2 {[%emt 0:
00:00]} O-O {[%emt 0:00:43]} 7. d4 {[%emt 0:00:46]} c6 {[%emt 0:00:30]} 8. O-O
{[%emt 0:00:12]} e5 {[%emt 0:02:03]} 9. b4 {[%emt 0:01:17]} Qc7 {[%emt 0:05:34]
} 10. Bb2 {[%emt 0:04:42]} Rd8 {[%emt 0:17:35]} 11. Rc1 {[%emt 0:01:52]} Be6 {
[%emt 0:03:32]} 12. d5 {[%emt 0:02:12]} Bf7 {[%emt 0:00:09]} 13. Qc2 {[%emt 0:
00:00]} cxd5 {[%emt 0:08:48]} 14. Nxd5 {[%emt 0:05:34]} Nxd5 {[%emt 0:00:10]}
15. Bxd5 {[%emt 0:00:45]} Bxd5 {[%emt 0:00:13]} 16. cxd5 {[%emt 0:00:04]} Qd7 {
[%emt 0:02:24]} 17. Qc7 {[%emt 0:01:09]} Na6 {[%emt 0:00:50]} 18. Qxd7 {
[%emt 0:02:13]} Rxd7 {[%emt 0:00:05]} 19. a3 {[%emt 0:00:47]} Rc7 {[%emt 0:00:
00]} 20. f4 {[%emt 0:00:42]} Rac8 {[%emt 0:10:58]} 21. fxe5 {[%emt 0:06:37]}
Bxe5 {[%emt 0:01:47]} 22. Bxe5 {[%emt 0:00:25]} dxe5 {[%emt 0:00:02]} 23. Rxc7
{[%emt 0:06:09]} Rxc7 {[%emt 0:02:13]} 24. Rc1 {[%emt 0:00:20]} Kf7 {[%emt 0:
00:00]} 25. Kf2 {[%emt 0:02:07]} Rxc1 {[%emt 0:12:06]} 26. Nxc1 {[%emt 0:00:07]
} Ke7 {[%emt 0:00:05]} 27. Kf3 {[%emt 0:00:25]} Nc7 {[%emt 0:06:42]} 28. e4 {
[%emt 0:04:41]} Kd6 {[%emt 0:02:01]} 29. Nd3 {[%emt 0:03:19]} Nxd5 {[%emt 0:00:
00]} 30. g4 {[%emt 0:17:46]} Nf6 {[%emt 0:03:36]} 31. gxf5 {[%emt 0:01:08]}
gxf5 {[%emt 0:00:10]} 32. Nc5 {[%emt 0:00:15]} b6 {[%emt 0:00:52]} 33. Nb3 {
[%emt 0:04:39]} Nxe4 {[%emt 0:00:12]} 34. a4 {[%emt 0:00:12]} Nc3 {[%emt 0:00:
00]} 35. a5 {[%emt 0:00:18]} Nd5 {[%emt 0:00:40]} 36. Nd2 {[%emt 0:02:48]} b5 {
[%emt 0:01:02]} 37. h4 {[%emt 0:01:23]} Nxb4 {[%emt 0:00:24]} 38. h5 {[%emt 0:
00:00]} h6 {[%emt 0:00:40]} 0-1

[Event "44th Chess Olympiad Open 2022"]
[Site "Chennai"]
[Date "2022.08.06"]
[Round "8.89"]
[White "Cabunagan, Tito"]
[Black "Ramachandran, R..."]
[Result "1-0"]
[WhiteElo "1706"]
[BlackElo "1994"]
[Annotator "NA RC"]
[PlyCount "117"]
[EventDate "2022.??.??"]
[TimeControl "60"]

1. e4 {[%emt 0:00:02]} c5 {[%emt 0:00:12]} 2. Nf3 {[%emt 0:00:03]} Nc6 {
[%emt 0:00:25]} 3. Bb5 {[%emt 0:00:00]} g6 {[%emt 0:07:27]} 4. Bxc6 {[%emt 0:
00:00]} dxc6 {[%emt 0:01:03]} 5. O-O {[%emt 0:00:00]} Bg7 {[%emt 0:03:39]} 6.
d3 {[%emt 0:00:33]} e6 {[%emt 0:04:24]} 7. Nbd2 {[%emt 0:00:10]} b5 {[%emt 0:
00:00]} 8. a4 {[%emt 0:00:02]} Bb7 {[%emt 0:01:15]} 9. Nb3 {[%emt 0:00:28]} Qb6
{[%emt 0:09:14]} 10. a5 {[%emt 0:00:06]} Qc7 {[%emt 0:02:20]} 11. Nxc5 {
[%emt 0:00:01]} Ne7 {[%emt 0:01:30]} 12. c3 {[%emt 0:00:06]} O-O {[%emt 0:00:
00]} 13. Re1 {[%emt 0:00:42]} Rad8 {[%emt 0:03:07]} 14. Qc2 {[%emt 0:00:02]}
Bc8 {[%emt 0:02:07]} 15. h3 {[%emt 0:00:09]} Qd6 {[%emt 0:08:14]} 16. b4 {
[%emt 0:00:38]} Qb8 {[%emt 0:11:01]} 17. Bg5 {[%emt 0:00:41]} Rfe8 {[%emt 0:00:
00]} 18. Bxe7 {[%emt 0:00:50]} Rxe7 {[%emt 0:00:47]} 19. e5 {[%emt 0:00:00]} f6
{[%emt 0:01:43]} 20. d4 {[%emt 0:00:45]} fxe5 {[%emt 0:01:18]} 21. Nxe5 {
[%emt 0:00:00]} Bxe5 {[%emt 0:03:26]} 22. Rxe5 {[%emt 0:00:00]} Rf8 {[%emt 0:
00:00]} 23. Rae1 {[%emt 0:00:00]} Rfe8 {[%emt 0:02:24]} 24. Qe4 {[%emt 0:00:00]
} Qd6 {[%emt 0:01:15]} 25. Qg4 {[%emt 0:00:00]} Kf7 {[%emt 0:02:07]} 26. Qg3 {
[%emt 0:00:00]} Kg7 {[%emt 0:00:51]} 27. R1e4 {[%emt 0:00:22]} Qc7 {[%emt 0:00:
00]} 28. Rf4 {[%emt 0:00:44]} Rf8 {[%emt 0:01:40]} 29. Rxf8 {[%emt 0:00:14]}
Kxf8 {[%emt 0:00:35]} 30. Ne4 {[%emt 0:01:21]} Kg7 {[%emt 0:02:07]} 31. Qh4 {
[%emt 0:00:54]} h6 {[%emt 0:01:31]} 32. Qf6+ {[%emt 0:00:12]} Kh7 {[%emt 0:00:
00]} 33. Qf8 {[%emt 0:00:45]} g5 {[%emt 0:01:59]} 34. Nf6+ {[%emt 0:00:35]} Kg6
{[%emt 0:00:31]} 35. Ng8 {[%emt 0:02:09]} Rg7 {[%emt 0:01:06]} 36. Qf6+ {
[%emt 0:03:59]} Kh7 {[%emt 0:00:40]} 37. Nxh6 {[%emt 0:00:05]} Rg6 {[%emt 0:00:
00]} 38. Qf7+ {[%emt 0:00:02]} Rg7 {[%emt 0:01:01]} 39. Qxc7 {[%emt 0:00:03]}
Rxc7 {[%emt 0:00:35]} 40. Ng4 {[%emt 0:00:00]} Re7 {[%emt 0:00:43]} 41. Rxg5 {
[%emt 0:30:11]} a6 {[%emt 0:31:59]} 42. Ne5 {[%emt 0:00:16]} Bb7 {[%emt 0:00:
00]} 43. Rg4 {[%emt 0:00:37]} Rg7 {[%emt 0:02:05]} 44. Rxg7+ {[%emt 0:00:05]}
Kxg7 {[%emt 0:00:23]} 45. f4 {[%emt 0:00:07]} Kf6 {[%emt 0:01:04]} 46. g4 {
[%emt 0:00:01]} Kg7 {[%emt 0:01:31]} 47. h4 {[%emt 0:00:03]} c5 {[%emt 0:01:06]
} 48. dxc5 {[%emt 0:00:02]} Kf6 {[%emt 0:00:49]} 49. Kf2 {[%emt 0:00:03]} Bd5 {
[%emt 0:00:55]} 50. c6 {[%emt 0:00:28]} Ke7 {[%emt 0:00:26]} 51. Ke3 {[%emt 0:
00:00]} Kd6 {[%emt 0:00:24]} 52. Kd4 {[%emt 0:00:22]} Bg2 {[%emt 0:00:12]} 53.
h5 {[%emt 0:00:35]} Ke7 {[%emt 0:05:51]} 54. Kc5 {[%emt 0:00:00]} Kd8 {[%emt 0:
00:00]} 55. Kb6 {[%emt 0:00:25]} Kc8 {[%emt 0:01:16]} 56. h6 {[%emt 0:00:00]}
Be4 {[%emt 0:01:29]} 57. g5 {[%emt 0:00:01]} Bf5 {[%emt 0:00:00]} 58. Kxa6 {
[%emt 0:00:00]} Kc7 {[%emt 0:00:00]} 59. Kxb5 {[%emt 0:01:45]} 1-0

[Event "44th Chess Olympiad Open 2022"]
[Site "Chennai"]
[Date "2022.08.06"]
[Round "8.89"]
[White "Pillay, Ragul"]
[Black "Salvadora, Angelo"]
[Result "1-0"]
[WhiteElo "1341"]
[BlackElo "1711"]
[Annotator "NA RC"]
[PlyCount "93"]
[EventDate "2022.??.??"]
[TimeControl "60"]

1. d4 {[%emt 0:00:04]} d5 {[%emt 0:00:48]} 2. c4 {[%emt 0:00:10]} Nf6 {[%emt 0:
00:00]} 3. Nc3 {[%emt 0:00:12]} Bg4 {[%emt 0:02:07]} 4. Qb3 {[%emt 0:04:05]}
Nc6 {[%emt 0:04:18]} 5. cxd5 {[%emt 0:03:25]} Nxd4 {[%emt 0:03:09]} 6. Qa4+ {
[%emt 0:00:27]} c6 {[%emt 0:06:08]} 7. Qxd4 {[%emt 0:00:53]} cxd5 {[%emt 0:00:
00]} 8. Bg5 {[%emt 0:01:48]} Be6 {[%emt 0:00:36]} 9. e3 {[%emt 0:01:57]} a6 {
[%emt 0:00:56]} 10. Nf3 {[%emt 0:03:08]} g6 {[%emt 0:02:43]} 11. Bxf6 {[%emt 0:
00:00]} exf6 {[%emt 0:00:08]} 12. Be2 {[%emt 0:00:11]} Bg7 {[%emt 0:00:55]} 13.
Qb4 {[%emt 0:04:44]} Rb8 {[%emt 0:08:09]} 14. O-O {[%emt 0:02:02]} Bf8 {
[%emt 0:00:19]} 15. Qa4+ {[%emt 0:04:39]} Bd7 {[%emt 0:01:05]} 16. Qd4 {
[%emt 0:03:23]} Bc6 {[%emt 0:02:57]} 17. Rfd1 {[%emt 0:03:46]} Bg7 {[%emt 0:00:
00]} 18. Nxd5 {[%emt 0:04:20]} O-O {[%emt 0:00:18]} 19. Nb4 {[%emt 0:04:59]}
Qe8 {[%emt 0:02:56]} 20. Nxc6 {[%emt 0:01:38]} Qxc6 {[%emt 0:00:21]} 21. Rac1 {
[%emt 0:03:30]} Qe6 {[%emt 0:04:31]} 22. Bc4 {[%emt 0:05:06]} Qe7 {[%emt 0:00:
00]} 23. Qd7 {[%emt 0:01:50]} Qb4 {[%emt 0:01:50]} 24. b3 {[%emt 0:07:02]} Qa3
{[%emt 0:00:51]} 25. Qd2 {[%emt 0:06:36]} b5 {[%emt 0:00:57]} 26. Bd5 {[%emt 0:
00:00]} b4 {[%emt 0:00:54]} 27. Rc7 {[%emt 0:03:49]} Qa5 {[%emt 0:01:33]} 28.
Qc2 {[%emt 0:04:32]} Rb5 {[%emt 0:08:17]} 29. Qc4 {[%emt 0:03:34]} Rbb8 {
[%emt 0:10:45]} 30. Rxf7 {[%emt 0:02:36]} Rxf7 {[%emt 0:02:42]} 31. Bxf7+ {
[%emt 0:00:13]} Kh8 {[%emt 0:00:13]} 32. Nd4 {[%emt 0:04:33]} Rd8 {[%emt 0:00:
00]} 33. Qc2 {[%emt 0:00:27]} Qh5 {[%emt 0:00:25]} 34. Nf3 {[%emt 0:01:19]} Rf8
{[%emt 0:01:29]} 35. Qc7 {[%emt 0:00:32]} Qf5 {[%emt 0:01:00]} 36. Nd4 {
[%emt 0:00:32]} Qg4 {[%emt 0:05:02]} 37. f3 {[%emt 0:00:21]} Qg5 {[%emt 0:00:
00]} 38. Qe7 {[%emt 0:02:12]} h6 {[%emt 0:04:17]} 39. h4 {[%emt 0:00:54]} Qg3 {
[%emt 0:03:43]} 40. Bc4 {[%emt 0:02:32]} Qe5 {[%emt 0:02:38]} 41. Qxe5 {
[%emt 0:31:26]} fxe5 {[%emt 0:30:07]} 42. Ne6 {[%emt 0:00:10]} Rf6 {[%emt 0:00:
00]} 43. Rd8+ {[%emt 0:00:39]} Kh7 {[%emt 0:00:15]} 44. Nxg7 {[%emt 0:00:45]}
Kxg7 {[%emt 0:01:36]} 45. Re8 {[%emt 0:00:13]} Rd6 {[%emt 0:00:39]} 46. Rxe5 {
[%emt 0:00:00]} Rd1+ {[%emt 0:00:00]} 47. Kh2 {[%emt 0:00:00]} 1-0